[Event "GCT Superbet Rapid Poland 2025"]
[Site "Warsaw"]
[Date "2025.04.28"]
[Round "7.4"]
[White "Aravindh, Chithambaram VR."]
[Black "Duda, Jan-Krzysztof"]
[Result "1-0"]
[ECO "C67"]
[WhiteElo "2749"]
[BlackElo "2739"]
[Annotator "TA"]
[PlyCount "71"]
[EventDate "2025.??.??"]
[EventType "rapid"]
[TimeControl "1500+10"]

{[%evp 9,71,22,29,-16,0,0,-12,-27,-17,-11,-7,-75,-76,-93,-92,-83,-92,-95,0,-41,-16,-14,-29,-20,-26,-22,-26,-45,-43,-74,-75,-86,47,58,50,48,266,260,1003,997,975,529,540,546,545,546,546,546,525,396,540,541,537,520,476,440,515,510,668,666,702,570,717,600]} 1. e4 {[%emt 0:00:02]} e5 {[%emt 0:00:06]} 2. Nf3 {[%emt 0:00:04]} Nc6 {[%emt 0:00:02]} 3. Bb5 {[%emt 0:00:20]} Nf6 {[%emt 0:00:08]} 4. O-O {[%emt 0:00:31]} Nxe4 {[%emt 0:00:06]} 5. d4 {[%emt 0:01:25]} Nd6 {[%emt 0:00:02]} 6. Ba4 {[%emt 0:00:02][%mdl 1024] White has compensation. C67: Ruy Lopez: Berlin Defence: 4 0-0 Nxe4.} e4 {[%emt 0:00:54]} 7. Re1 {[%emt 0:00:11]} Be7 {[%emt 0:00:14]} 8. Ne5 {[%emt 0:00:03] The position is equal.} b5 {[%emt 0:01:44]} ({RR} 8... O-O 9. Nc3 f5 10. Bf4 Nxe5 11. dxe5 Nf7 12. Bb3 Kh8 13. Bxf7 Rxf7 14. Qh5 Kg8 15. Nd5 d6 16. Rad1 Be6 17. Nxe7+ Qxe7 18. exd6 cxd6 19. Rxd6 Rd8 20. Red1 Rxd6 21. Rxd6 Rf8 22. Qd1 Re8 23. Qd4 {Erigaisi,A (2797)-Vidit,S (2726) London ENG 2024 1-0 (51)}) ({RR} 8... O-O 9. Nc3 Nf5 10. Rxe4 Nxe5 11. dxe5 d6 12. Bf4 c6 13. exd6 Bxd6 14. Bxd6 Qxd6 15. Bb3 Qg6 16. Ne2 Nd6 17. Rd4 Nb5 18. Rd8 Bg4 19. Rxa8 Rxa8 20. Qd2 Re8 21. Re1 Qd6 22. Qxd6 Nxd6 23. f3 {Gilfanov,M (2376)-Afanasiev,N (2518) Moscow RUS 2025 ½-½ (32)}) 9. Bb3 {[%emt 0:00:02]} Na5 $1 {[%emt 0:02:13]} 10. Bxf7+ $146 {[%emt 0:00:07]} ({RR} 10. Nc3 Nxb3 11. axb3 O-O 12. Nxe4 Nxe4 13. Rxe4 Bb7 14. d5 Bf6 15. Ng4 Bg5 16. Bxg5 Qxg5 17. Ne3 f5 18. f4 Qf6 19. Rd4 a6 20. b4 Rae8 21. Qd2 Re4 22. Rxe4 fxe4 23. g3 Qxb2 24. Rd1 d6 {Sulskis,S (2527)-Aleksandrov,A (2614) Warsaw 2007 ½-½ (54)}) ({RR} 10. Nc3 Nxb3 11. axb3 O-O 12. Nxe4 Nxe4 13. Rxe4 Bb7 14. d5 f6 15. Nf3 f5 16. Re2 Bf6 17. c4 c6 18. Be3 bxc4 19. bxc4 cxd5 20. cxd5 a5 21. Bd4 Ra6 22. Qb3 Bxd4 23. Nxd4 Rb6 24. Qc3 Qf6 {Mihok,O (2544)-Sipos,I (2460) Slovakia 2018 ½-½ (47)}) ({RR} 10. Bd5 c6 11. Bxe4 Nxe4 12. Rxe4 d6 13. Nf3 O-O 14. b3 Bf5 15. Re2 Re8 16. Bf4 Qd7 17. Qd2 Nb7 18. Nc3 Bf8 19. Rae1 f6 20. d5 c5 21. h3 Bg6 22. Ne4 b4 23. Nh4 Bf7 24. g4 Kh8 {Caruana,F (2764)-Artemiev,V (2701) chess.com INT 2023 ½-½ (75)}) 10... Nxf7 $17 {[%emt 0:00:02]} 11. Nxf7 {[%emt 0:00:02]} Kxf7 {[%emt 0:00:02]} 12. Qh5+ {[%emt 0:00:02]} Kf8 {[%emt 0:00:42]} 13. Nc3 {[%emt 0:00:04]} Bb7 $146 {[%emt 0:12:03]} ({Black should try} 13... a6 $17 {...Qe8 is the strong threat.} 14. Rxe4 Bb7) (13... Qe8 14. Qxb5 Nc6 15. Rxe4 Rb8 16. Qe2 Qf7 17. d5 Nd8 18. Bf4 Rb4 19. Bxc7 Rxe4 20. Qxe4 {1-0 Erigaisi,A (2801)-Wei,Y (2755) Chessable Masters Winners rapid 2025 (2.1)}) 14. Nxe4 {[%emt 0:02:23]} Qe8 {[%emt 0:00:32]} 15. Qxb5 {[%emt 0:01:35]} d5 $1 {[%emt 0:00:29]} 16. Qxa5 {[%emt 0:00:14]} dxe4 {[%emt 0:00:02]} 17. Qxc7 {[%emt 0:00:26]} Qc8 {[%emt 0:00:13]} 18. Qg3 {[%emt 0:01:31]} Qxc2 {[%emt 0:03:53]} 19. Bg5 {[%emt 0:00:04]} Bxg5 {[%emt 0:00:36]} (19... Qxb2 $2 20. Bxe7+ Kxe7 21. Qxg7+ (21. Rab1 Qxb1 22. Qxg7+ Kd6 $18) 21... Kd6 22. Rab1 $18) 20. Qxg5 {[%emt 0:00:02]} Qc4 {[%emt 0:00:36]} (20... Qxb2 $2 21. Qc5+ Kg8 22. Reb1 $18) (20... Qc6 $17 21. Rac1 Qd6) 21. Rac1 $36 {[%emt 0:02:28][%cal Ba1c1,Bc1c5,Bc5f5,Bf5e5][%mdl 2080] Strong Rooks White (c1+e1) White fights for an advantage.} Qd5 {[%emt 0:00:48]} (21... Qxa2 $2 22. Rc7 $18) 22. Qg3 {[%emt 0:00:03]} h5 $2 {[%emt 0:02:19] [#] Black cannot hold the game after this.} (22... Qxa2 $2 {is the wrong capture.} 23. Rc7 $18) (22... Rc8 $1 $14) 23. Rc5 $1 $18 {[%emt 0:01:40]} Qxd4 {[%emt 0:00:02]} (23... Qd7 24. Rc7 Qxd4 25. Rxb7 Rh6 26. Rb8+ Rxb8 27. Qxb8+ Kf7 28. Qb7+ Kg8 29. Qxe4 (29. Rxe4 $2 {leads to mate.} Qd1+) (29. Qa8+ Kh7 $18) 29... Qxe4 30. Rxe4 Rb6) 24. Rf5+ {[%emt 0:00:36]} Ke8 {[%emt 0:00:22]} 25. Qc7 {[%emt 0:00:02]} Bd5 {[%emt 0:00:24]} 26. Qd6 {[%emt 0:02:09] Wards off Rh6} Rd8 {[%emt 0:00:38]} 27. Re5+ {[%emt 0:00:02]} Kf7 {[%emt 0:00:01][%cal Be8f7,Bf7g8,Bg8h7,Bh7h6,Bh6g7][%mdl 32]} 28. Re7+ {[%emt 0:00:05]} Kg8 {[%emt 0:00:01]} 29. Qxd8+ {[%emt 0:00:13]} Kh7 {[%emt 0:00:00]} 30. Re8 {[%emt 0:00:29] White is clearly winning.} Rxe8 {[%emt 0:00:18]} 31. Qxe8 {[%emt 0:00:02] KQR-KQB} Kh6 {[%emt 0:00:04]} 32. Qb5 {[%emt 0:01:53]} h4 {[%emt 0:00:31]} 33. h3 {[%emt 0:00:09]} g5 {[%emt 0:00:15]} 34. Qa6+ {[%emt 0:00:45]} Kg7 {[%emt 0:00:16]} 35. Qe2 {[%emt 0:00:03]} Bxa2 {[%emt 0:00:10]} 36. Qe3 {[%emt 0:02:25] Weighted Error Value: White=0.38/Black=0.46 Loses game: 	--- 	Black=1 Mistake: 	White=1 	Black=3 Inaccurate: 	White=2 	Black=2 OK: 	White=11 	Black=10 Best: 	White=4 	Black=4 Strong: 	White=1 	Black=2} 1-0

[Event "GCT Superbet Rapid Poland 2025"]
[Site "Warsaw"]
[Date "2025.04.28"]
[Round "7.5"]
[White "Aronian, Levon"]
[Black "Topalov, Veselin"]
[Result "1-0"]
[ECO "C55"]
[WhiteElo "2747"]
[BlackElo "2717"]
[Annotator "TA"]
[PlyCount "73"]
[EventDate "2025.??.??"]
[EventType "rapid"]
[TimeControl "1500+10"]

{[%evp 10,73,39,42,35,20,30,27,34,21,32,27,18,8,59,63,59,65,111,112,106,106,243,239,241,243,256,193,212,184,218,244,250,141,183,149,141,139,184,177,236,214,349,362,481,347,367,341,340,320,323,327,398,397,391,378,374,251,249,242,249,122,296,343,344,352]} 1. e4 {[%emt 0:00:02]} e5 {[%emt 0:00:02]} 2. Nf3 {[%emt 0:00:02]} Nc6 {[%emt 0:00:01]} 3. Bc4 {[%emt 0:00:02]} Nf6 {[%emt 0:00:02]} 4. d3 {[%emt 0:00:02]} h6 {[%emt 0:00:02]} 5. O-O {[%emt 0:00:23]} d6 {[%emt 0:00:11]} 6. a4 {[%emt 0:00:36]} g5 {[%emt 0:01:52][%cal Bg7g5,Bg5g4][%mdl 32] C55: Two Knights: 4 d3, 4 d4 exd4 5 e5 and Max Lange Attack.} 7. Nc3 {[%emt 0:00:09]} Bg7 {[%emt 0:00:50]} 8. Ne2 $146 {[%emt 0:00:12]} (8. a5 a6 9. Be3 O-O 10. h3 g4 11. hxg4 Bxg4 12. Qd2 Bxf3 13. gxf3 Nh5 14. Kg2 {1-0 Tabatabaei,M (2695)-Pranesh,M (2582) Qatar Masters op-A 2024 (6)}) ({RR} 8. a5 a6 9. Re1 O-O 10. h3 Ne7 11. Nh2 Kh8 12. Ng4 Nh7 13. Nd5 Nxd5 14. Bxd5 c6 15. Bb3 f5 16. exf5 Bxf5 17. Be3 Qe8 18. d4 e4 19. d5 c5 20. c3 Qg6 21. Bc2 h5 22. Nh2 g4 {Arjun,K (2513)-Kamalidenova,M (2384) Dubai 2022 1-0 (55)}) ({RR} 8. a5 a6 9. Nd5 O-O 10. Ne3 Ne7 11. h4 g4 12. Nh2 h5 13. g3 c6 14. f3 d5 15. Bb3 gxf3 16. Qxf3 dxe4 17. dxe4 Qd4 18. Ra4 Qc5 19. Bd2 Qd6 20. Bb4 c5 21. Bc3 c4 22. Bxc4 Bh3 {Svidler,P (2737)-Matlakov,M (2700) St Petersburg 2018 1-0 (33)}) ({RR} 8. Be3 Be6 9. a5 Bxc4 10. dxc4 a6 11. Re1 O-O 12. Nd2 Nd4 13. Nf1 Nd7 14. Ng3 f5 15. exf5 Nxf5 16. Qd5+ Kh8 17. Nxf5 Rxf5 18. Qxb7 Rb8 19. Qxa6 Rxb2 20. Qc6 e4 21. Qxe4 Bxc3 22. Qxf5 Bxe1 {Giri,A (2737)-Roebers,J (2127) Delft NED 2025 1-0}) ({RR} 8. Re1 O-O 9. h3 Be6 10. a5 a6 11. Bxe6 fxe6 12. Ne2 Qe8 13. Ng3 Nh5 14. Nxh5 Qxh5 15. c3 Ne7 16. Nh2 Qf7 17. Rf1 Kh8 18. b4 Ng8 19. Rb1 Nf6 20. Qe2 Qd7 21. Bd2 Rad8 22. Rfd1 Qe8 {Liang,J (2529)-Mardov,D (2445) Los Angeles USA 2023 ½-½ (71)}) ({RR} 8. a5 a6 9. Nd5 Nxd5 10. Bxd5 Ne7 11. Ba2 Bg4 12. c3 Qd7 13. Qb3 O-O 14. Nd2 Kh8 15. Nc4 Be6 16. Qc2 f5 17. Re1 f4 18. d4 Ng6 19. dxe5 Bxc4 20. Bxc4 Nxe5 21. Bf1 f3 22. g3 Qf7 {Kleiman,J (2399)-Indjic,A (2600) chess.com INT 2024 0-1 (46)}) 8... g4 {[%emt 0:01:21] White has an edge.} 9. Ne1 {[%emt 0:00:04]} d5 {[%emt 0:01:15]} 10. exd5 {[%emt 0:00:04]} Nxd5 {[%emt 0:00:01]} 11. f4 {[%emt 0:00:30]} Qd6 {[%emt 0:07:08]} (11... gxf3 $1 $11 12. Nxf3 Be6) 12. c3 $14 {[%emt 0:02:22]} Bd7 {[%emt 0:00:58]} 13. fxe5 {[%emt 0:00:24]} Nxe5 {[%emt 0:01:22]} (13... Bxe5 $14 {is more appropriate.} 14. g3 Qc5+ 15. Kh1 O-O-O) 14. Bxd5 {[%emt 0:00:31]} Qxd5 {[%emt 0:00:02]} 15. Nf4 {[%emt 0:00:02] Repels Ng6} Qa5 {[%emt 0:00:39] A sharp opening} (15... Qd6 $16) 16. d4 $18 {[%emt 0:00:39]} Nc6 {[%emt 0:00:33]} 17. Qe2+ {[%emt 0:00:35]} Kd8 {[%emt 0:00:10]} 18. Qf2 {[%emt 0:01:01]} Kc8 {[%emt 0:00:38]} 19. Ned3 {[%emt 0:00:15]} b6 {[%emt 0:00:18] Prevents Nc5.} 20. b4 {[%emt 0:01:55]} Qf5 {[%emt 0:00:07] [#]} 21. a5 $1 {[%emt 0:00:08][%mdl 512]} Re8 {[%emt 0:00:51]} (21... Rb8 22. Be3) 22. Be3 {[%emt 0:01:12]} Rb8 {[%emt 0:00:30][%cal Rb6a5]} 23. Qd2 {[%emt 0:00:59]} Nd8 {[%emt 0:02:06]} 24. Rac1 {[%emt 0:01:20]} Nb7 {[%emt 0:00:36]} (24... Ne6 {was worth a try.} 25. Ne2 Qg6) 25. c4 {[%emt 0:04:11]} bxa5 {[%emt 0:02:54]} (25... Nd6 $142 26. axb6 (26. Nd5 Qe4 $16) 26... axb6) 26. Nd5 {[%emt 0:01:08]} Qe6 {[%emt 0:01:28]} 27. N3f4 {[%emt 0:00:20][%cal Bd3f4,Bf4h5,Bh5f6][%mdl 32]} (27. bxa5 f5 28. Qc3 Bc6 $18) 27... Qe4 {[%emt 0:00:58]} 28. Nh5 {[%emt 0:00:10] Excellent horsemanship.} (28. bxa5 Nd6 $18) 28... Bh8 {[%emt 0:00:30]} 29. Rce1 {[%emt 0:01:42][%cal Od5c7]} (29. Bxh6 Qxd4+ 30. Kh1 Qxd2 31. Bxd2 Nd6 $16) (29. bxa5 Nd6 $18) (29. Rxf7 Qg6 30. Rcf1 Nd6 31. Ne7+ (31. Rxd7 Kxd7 32. Nhf6+ Bxf6 $16) 31... Rxe7 32. Rxe7 Nxc4 $16) 29... Nd6 {[%emt 0:00:17]} 30. Nhf6 {[%emt 0:00:18]} (30. bxa5 $2 Nxc4 31. Qc1 Qxd5 $19) 30... Nxc4 {[%emt 0:00:31]} 31. Qc3 {[%emt 0:00:01]} (31. Nxe4 Nxd2 32. Nxd2 (32. Bxd2 Bxd4+ 33. Kh1 axb4 $14) 32... Rb5 $14) 31... Bxf6 {[%emt 0:01:47]} 32. Nxf6 {[%emt 0:00:02]} (32. Qxc4 Bd8 33. Bf4 (33. Rxf7 Rb7 $17) (33. bxa5 $2 Bb5 $19) 33... Bb5 (33... Qxe1 34. Nxc7 $18) 34. Rxe4 Bxc4 35. Rxe8 Bxd5 $16) 32... Qc6 {[%emt 0:00:08]} 33. Nxe8 {[%emt 0:01:04]} (33. bxa5 Rxe3 34. Rxe3 Nxe3 35. Qxe3 Qd6 $11) 33... Bxe8 {[%emt 0:00:01]} 34. bxa5 {[%emt 0:02:42][%cal Bb4a5,Ba5a6][%mdl 32]} Qd5 {[%emt 0:00:22]} 35. Bf4 {[%emt 0:00:11]} (35. Rf2 $18 {and White stays clearly on top.}) 35... Bc6 $2 {[%emt 0:00:10]} (35... Rb2 $16 36. Rxe8+ Kd7) 36. Rf2 {[%emt 0:00:02] And now Rc2 would win.} (36. Bxh6 $2 Qxg2#) 36... Rb5 {[%emt 0:00:15]} 37. a6 {[%emt 0:00:36] Weighted Error Value: White=0.25 (precise) /Black=0.37 Loses game: 	--- 	Black=1 Mistake: 	White=2 	Black=5 Inaccurate: 	White=1 	Black=2 OK: 	White=13 	Black=11 Best: 	White=2 	---} ({Weaker is} 37. Bxh6 Nxa5 38. Bf4 f6 $18) 1-0

[Event "GCT Superbet Rapid Poland 2025"]
[Site "Warsaw"]
[Date "2025.04.28"]
[Round "8.1"]
[White "Vachier-Lagrave, Maxime"]
[Black "Aravindh, Chithambaram VR."]
[Result "1-0"]
[ECO "C88"]
[WhiteElo "2722"]
[BlackElo "2749"]
[Annotator "TA"]
[PlyCount "73"]
[EventDate "2025.??.??"]
[EventType "rapid"]
[TimeControl "1500+10"]

{[%evp 16,73,16,27,37,10,39,13,45,52,64,51,62,63,69,62,86,75,88,74,72,61,77,66,106,106,100,103,120,107,137,104,141,138,130,137,175,122,125,133,366,366,522,337,669,702,707,711,691,693,685,658,29975,29976,29976,29977,29975,29976,5397,5359]} 1. e4 {[%emt 0:00:02]} e5 {[%emt 0:00:03]} 2. Nf3 {[%emt 0:00:01]} Nc6 {[%emt 0:00:04]} 3. Bb5 {[%emt 0:00:02][%cal Bf1b5,Bb5a4,Ba4b3][%mdl 32]} a6 {[%emt 0:00:14]} 4. Ba4 {[%emt 0:00:01]} Nf6 {[%emt 0:00:03]} 5. O-O {[%emt 0:00:02]} Be7 {[%emt 0:00:24]} 6. Re1 {[%emt 0:00:02]} b5 {[%emt 0:00:02]} 7. Bb3 {[%emt 0:00:02]} O-O {[%emt 0:00:10]} 8. h3 {[%emt 0:00:19]} Bb7 {[%emt 0:00:35]} 9. d3 {[%emt 0:00:02]} d6 {[%emt 0:00:12] 9...d5 gains popularity. C88: Closed Ruy Lopez: Anti-Marshall Systems.} 10. a4 {[%emt 0:00:47]} Nd7 {[%emt 0:02:52]} ({RR} 10... Na5 11. Ba2 c5 12. Nbd2 Qc7 13. Nf1 b4 14. Bd2 Bc8 15. Ne3 Be6 16. Nf5 Nc6 17. c3 Bxa2 18. Rxa2 bxc3 19. bxc3 Rfb8 20. d4 Bf8 21. dxc5 dxc5 22. Bg5 Ne8 23. Ne3 Nd6 24. Nd5 Qb7 25. Nd2 {Vachier Lagrave,M (2718)-Carlsen,M (2832) chess.com INT 2024 1-0 (52)}) 11. Be3 {[%emt 0:00:46]} Kh8 $146 {[%emt 0:01:14] The position is equal.} (11... Nc5 12. Bxc5 dxc5 13. Bd5 Qd6 14. Nc3 b4 15. Ne2 Nd8 16. Bxb7 Nxb7 17. Ng3 f6 {1-0 Bacrot,E (2684)-Gordon,F (2356) Titled Tuesday intern op 21st May Early blitz 2024 (7)}) ({RR} 11... Nc5 12. Bxc5 dxc5 13. Bd5 Qd6 14. Nc3 b4 15. Ne2 Nd8 16. Bxb7 Nxb7 17. Ng3 f6 18. Nd2 Na5 19. Nf5 Qd8 20. Qg4 g6 21. b3 Kh8 22. Ne3 Bd6 23. Ndc4 Nxc4 24. Nxc4 Qc8 25. Qxc8 Raxc8 26. g3 {Bacrot,E (2684)-Waldhausen Gordon,F (2356) chess.com INT 2024 1-0 (69)}) ({RR} 11... Nc5 12. Bxc5 dxc5 13. Bd5 Qd6 14. Nc3 b4 15. Ne2 Nd8 16. Bxb7 Nxb7 17. Ng3 f6 18. Nd2 Na5 19. Nf5 Qd8 20. Qg4 g6 21. b3 Kh8 22. Ne3 Bd6 23. Ndc4 Nxc4 24. Nxc4 Qc8 25. Qxc8 Raxc8 26. g3 {Bacrot,E (2684)-Waldhausen Gordon,F (2356) chess.com INT 2024 1-0 (69)}) ({RR} 11... Nc5 12. Bxc5 dxc5 13. Bd5 Qd6 14. Nc3 b4 15. Ne2 Nd8 16. Bxb7 Nxb7 17. Ng3 f6 18. Nd2 Na5 19. Nf5 Qd8 20. Qg4 g6 21. b3 Kh8 22. Ne3 Bd6 23. Ndc4 Nxc4 24. Nxc4 Qc8 25. Qxc8 Raxc8 26. g3 {Bacrot,E (2684)-Waldhausen Gordon,F (2356) chess.com INT 2024 1-0 (69)}) 12. axb5 {[%emt 0:00:37]} axb5 {[%emt 0:00:03]} 13. Rxa8 {[%emt 0:00:02]} Bxa8 {[%emt 0:00:45]} 14. Nc3 {[%emt 0:00:10]} Na5 {[%emt 0:01:18]} 15. Ba2 {[%emt 0:00:01]} f5 {[%emt 0:00:05]} 16. exf5 {[%emt 0:04:36] White is more active.} Rxf5 {[%emt 0:00:04]} 17. Nd5 {[%emt 0:00:38]} c5 {[%emt 0:04:15]} 18. Nd2 {[%emt 0:00:54]} Rf8 {[%emt 0:04:34]} 19. Ne4 {[%emt 0:01:01]} b4 {[%emt 0:04:01][%cal Ob4b3]} 20. c3 {[%emt 0:00:44]} Bxd5 {[%emt 0:01:58]} 21. Bxd5 {[%emt 0:00:07]} Nb6 {[%emt 0:00:07] [#]} 22. Ba2 {[%emt 0:01:02]} Nc6 {[%emt 0:00:33]} 23. Qg4 {[%emt 0:00:33]} Qa8 {[%emt 0:02:38]} 24. Be6 {[%emt 0:00:43]} bxc3 {[%emt 0:01:40]} 25. bxc3 {[%emt 0:00:01]} d5 {[%emt 0:00:02]} 26. Ng5 {[%emt 0:03:36]} ({Don't play} 26. Bxc5 $6 Bxc5 27. Nxc5 Qa5 $11) ({Better is} 26. Rb1 $18 Qa7 27. Nxc5 (27. Bxc5 Bxc5 28. Nxc5 h6 $18)) 26... Bxg5 {[%emt 0:00:16]} 27. Bxg5 {[%emt 0:00:01] [#] Rb1 is the strong threat. This pair of bishops is nice.} Qa5 $2 {[%emt 0:00:35] Loses the game.} (27... Qe8 $16 {is a better defense.}) 28. Rb1 $18 {[%emt 0:00:48]} c4 {[%emt 0:00:51]} (28... Qa7 $142 29. Qh5 Na4) 29. dxc4 {[%emt 0:01:15]} d4 $2 {[%emt 0:00:01]} (29... e4 30. Qg3 (30. cxd5 Nxd5 31. Rb7 Nc7 $18) 30... e3) 30. Qe4 {[%emt 0:00:38]} Nd8 {[%emt 0:00:16]} 31. Bxd8 {[%emt 0:00:36]} Rxd8 {[%emt 0:00:01]} 32. cxd4 {[%emt 0:00:15]} exd4 {[%emt 0:00:04] Black is weak on the light squares} 33. Rb5 {[%emt 0:00:01]} Qa7 {[%emt 0:00:27]} 34. Rh5 {[%emt 0:00:38][%csl Ge4][%cal Rh5h7]} h6 {[%emt 0:00:10]} 35. Qe5 {[%emt 0:00:02][%cal Rh5h6]} Kh7 {[%emt 0:00:02]} 36. Bf5+ {[%emt 0:00:06]} Kg8 {[%emt 0:00:01]} 37. Qe6+ {[%emt 0:00:11] Weighted Error Value: White=0.13 (very precise) /Black=0.65 Loses game: 	--- 	Black=1 Mistake: 	White=1 	Black=2 Inaccurate: 	White=3 	Black=4 OK: 	White=8 	Black=4 Best: 	White=1 	Black=2} 1-0

[Event "GCT Superbet Rapid Poland 2025"]
[Site "Warsaw"]
[Date "2025.04.28"]
[Round "8.2"]
[White "Fedoseev, Vladimir"]
[Black "Aronian, Levon"]
[Result "1/2-1/2"]
[ECO "A32"]
[WhiteElo "2739"]
[BlackElo "2747"]
[Annotator "TA"]
[PlyCount "54"]
[EventDate "2025.??.??"]
[EventType "rapid"]
[TimeControl "1500+10"]

{[%evp 12,54,-11,0,8,19,17,35,34,49,39,30,35,27,48,27,41,33,39,43,27,0,0,0,0,0,0,0,0,0,0,0,0,0,36,29,40,16,27,0,37,0,32,0,43]} 1. d4 {[%emt 0:00:05]} Nf6 {[%emt 0:00:04]} 2. c4 {[%emt 0:00:02]} e6 {[%emt 0:00:01]} 3. g3 {[%emt 0:00:14]} c5 {[%emt 0:00:02]} 4. Nf3 {[%emt 0:00:31]} cxd4 {[%emt 0:00:05]} 5. Nxd4 {[%emt 0:00:17]} Qc7 {[%emt 0:00:20]} 6. Nc3 {[%emt 0:01:17]} a6 {[%emt 0:00:01]} 7. Bg5 {[%emt 0:01:41]} Bb4 {[%emt 0:01:18] is the legacy move (7...Be7). A32: Symmetrical English: 2 Nf3 Nf6 3 d4 cxd4 4 Nxd4 e6.} 8. Bg2 {[%emt 0:01:18][%cal Bf1g2,Bg2e4,Be4b7][%mdl 32]} ({RR} 8. Bxf6 Bxc3+ 9. bxc3 gxf6 10. Bg2 d6 11. O-O Nd7 12. Qd2 O-O 13. Qh6 Qd8 14. g4 Nc5 15. Nb3 Kh8 16. Rad1 Qe7 17. Rd2 Rg8 18. Rfd1 e5 19. Rxd6 Nxb3 20. axb3 Bxg4 21. Kh1 Be6 22. Qe3 a5 {Gelfand,B (2700)-Tolnai,T (2450) Austria 1996 1-0 (34)}) ({RR} 8. Bxf6 gxf6 9. Qd3 d6 10. Bg2 Nd7 11. f4 Nb6 12. Nc2 Bxc3+ 13. Qxc3 Qxc4 14. Qxf6 Rg8 15. Ne3 Qc5 16. Kf2 Nc4 17. Qc3 d5 18. b3 Qxe3+ 19. Qxe3 Nxe3 20. Kxe3 Bd7 21. Rac1 Bc6 22. Kd4 Ke7 {Pulpan,J (2218)-Hansen,M (2350) Pardubice 2014 1-0 (48)}) 8... Bxc3+ $146 {[%emt 0:00:58]} (8... Qxc4 9. O-O Nc6 10. Nxc6 dxc6 11. Rc1 O-O 12. Ne4 Qb5 13. Nxf6+ gxf6 14. Bxf6 Qf5 15. Qd4 Re8 16. Qh4 h5 17. Rc4 {1-0 Rotstein,A (2490)-Dizdarevic,E (2465) Cannes op 1995 (9)}) ({RR} 8... Qxc4 9. O-O Nc6 10. Nxc6 dxc6 11. Rc1 O-O 12. Ne4 Qb5 13. Nxf6+ gxf6 14. Bxf6 Qf5 15. Qd4 Re8 16. Qh4 h5 17. Rc4 {1-0 (17) Rotstein,A (2490)-Dizdarevic,E (2465) Cannes 1995}) 9. bxc3 {[%emt 0:00:02]} Qxc4 {[%emt 0:00:06] White is slightly better.} 10. O-O {[%emt 0:00:05]} d5 {[%emt 0:00:27] [#]} 11. e4 $1 {[%emt 0:02:02]} dxe4 {[%emt 0:00:12]} 12. Bxf6 $1 {[%emt 0:00:07]} gxf6 {[%emt 0:00:01]} 13. Bxe4 {[%emt 0:00:02] White sacrificed a pawn} Nd7 {[%emt 0:00:02][%cal Oh7h5]} 14. Re1 {[%emt 0:00:16]} Qc5 {[%emt 0:02:51][%cal Oh7h5]} 15. Rb1 {[%emt 0:02:21]} O-O {[%emt 0:02:15]} 16. Bxb7 {[%emt 0:01:34]} Rb8 {[%emt 0:00:18][%cal Ba8b8,Bb8b7,Bb7b5,Bb5f5][%mdl 32]} 17. Nb3 {[%emt 0:02:15]} Qc7 {[%emt 0:01:16]} 18. Bg2 {[%emt 0:01:14]} Bb7 {[%emt 0:00:04]} 19. Bxb7 {[%emt 0:00:17] Successful Defense White} Rxb7 {[%emt 0:00:02]} 20. Qg4+ {[%emt 0:01:24]} Kh8 {[%emt 0:00:02][%cal Od7e5]} 21. Re3 {[%emt 0:00:06]} Rb5 {[%emt 0:01:34]} 22. Rd1 {[%emt 0:00:07]} Qb7 {[%emt 0:02:44]} 23. c4 {[%emt 0:00:32]} Rf5 {[%emt 0:01:15]} 24. Nd4 {[%emt 0:00:56] Active counter play!} Rc5 {[%emt 0:01:25]} 25. Nb3 {[%emt 0:00:05][%cal Od1d7] [#]} Rf5 $1 {[%emt 0:00:03]} 26. Nd4 {[%emt 0:01:30]} Rc5 {[%emt 0:00:03]} 27. Nb3 {[%emt 0:00:37][%cal Od1d7] Hoping for Rxd7!.} Rf5 $1 {[%emt 0:00:09] Weighted Error Value: White=0.10 (very precise) /Black=0.04 (flawless) Inaccurate: 	White=1 	Black=1 OK: 	White=6 	Black=8 Best: 	White=1 	--- Strong: 	White=1 	Black=2} 1/2-1/2